[Event "Titled Tuesday Blitz July 26 Early 2022"]
[White "Schekachikhin, Maksim"]
[Black "Visakh N R"]
[WhiteFideId "24177830"]
[BlackFideId "25012223"]
[WhiteElo "2239"]
[BlackElo "2448"]
[Result "1/2-1/2"]
[Round "02"]
[TimeControl "180+1"]
[Date "2022.07.26"]
[WhiteClock "0:00:17"]
[BlackClock "0:00:54"]

1. d4 {[%clk 0:03:00]}  Nf6 {[%clk 0:02:58]} 2. c4 {[%clk 0:02:59]}  e6 {[%clk 0:02:58]} 3. Nc3 {[%clk 0:02:58]}  d5 {[%clk 0:02:55]} 4. Bg5 {[%clk 0:02:57]}  Be7 {[%clk 0:02:53]} 5. e3 {[%clk 0:02:57]}  O-O {[%clk 0:02:53]} 6. Qc2 {[%clk 0:02:55]}  h6 {[%clk 0:02:51]} 7. Bxf6 {[%clk 0:02:54]}  Bxf6 {[%clk 0:02:51]} 8. Nf3 {[%clk 0:02:55]}  c5 {[%clk 0:02:50]} 9. dxc5 {[%clk 0:02:52]}  dxc4 {[%clk 0:02:42]} 10. Bxc4 {[%clk 0:02:51]}  Qa5 {[%clk 0:02:40]} 11. O-O {[%clk 0:02:48]}  Bxc3 {[%clk 0:02:38]} 12. Qxc3 {[%clk 0:02:44]}  Qxc3 {[%clk 0:02:37]} 13. bxc3 {[%clk 0:02:45]}  Nd7 {[%clk 0:02:38]} 14. c6 {[%clk 0:02:43]}  bxc6 {[%clk 0:02:38]} 15. Rab1 {[%clk 0:02:41]}  Nb6 {[%clk 0:02:36]} 16. Be2 {[%clk 0:02:40]}  Rd8 {[%clk 0:02:36]} 17. Rfc1 {[%clk 0:02:37]}  Bd7 {[%clk 0:02:34]} 18. Kf1 {[%clk 0:02:30]}  c5 {[%clk 0:02:32]} 19. Ne5 {[%clk 0:02:28]}  Be8 {[%clk 0:02:32]} 20. Ke1 {[%clk 0:02:27]}  f6 {[%clk 0:02:31]} 21. Nc4 {[%clk 0:02:24]}  Rdb8 {[%clk 0:02:22]} 22. Na5 {[%clk 0:01:57]}  Nd5 {[%clk 0:02:17]} 23. c4 {[%clk 0:01:37]}  Nb4 {[%clk 0:02:08]} 24. Ra1 {[%clk 0:01:10]}  Bg6 {[%clk 0:02:04]} 25. Kd2 {[%clk 0:00:59]}  Rd8+ {[%clk 0:02:02]} 26. Kc3 {[%clk 0:00:59]}  Nd3 {[%clk 0:02:03]} 27. Rf1 {[%clk 0:00:56]}  Rab8 {[%clk 0:01:56]} 28. Nb3 {[%clk 0:00:55]}  Nb2 {[%clk 0:01:44]} 29. Kxb2 {[%clk 0:00:29]}  Rd2+ {[%clk 0:01:43]} 30. Ka3 {[%clk 0:00:29]}  Rxe2 {[%clk 0:01:44]} 31. Nxc5 {[%clk 0:00:28]}  Rc8 {[%clk 0:01:43]} 32. Nxe6 {[%clk 0:00:28]}  Rxc4 {[%clk 0:01:43]} 33. Nf4 {[%clk 0:00:28]}  Rec2 {[%clk 0:01:29]} 34. Nxg6 {[%clk 0:00:26]}  R4c3+ {[%clk 0:01:29]} 35. Kb4 {[%clk 0:00:26]}  Rc4+ {[%clk 0:01:29]} 36. Kb3 {[%clk 0:00:24]}  R4c3+ {[%clk 0:01:04]} 37. Kb4 {[%clk 0:00:23]}  Rc4+ {[%clk 0:01:00]} 38. Kb3 {[%clk 0:00:23]}  Kf7 {[%clk 0:00:59]} 39. Nf4 {[%clk 0:00:23]}  R4c3+ {[%clk 0:00:54]} 40. Kb4 {[%clk 0:00:23]}  Rc4+ {[%clk 0:00:54]} 41. Kb3 {[%clk 0:00:20]}  R4c3+ {[%clk 0:00:53]} 42. Kb4 {[%clk 0:00:20]}  Rc4+ {[%clk 0:00:54]} 43. Kb3 {[%clk 0:00:17]} 1/2-1/2


[Site "https://www.chess.com"]

[Event "Titled Tuesday Blitz July 26 Early 2022"]
[White "Seo, Jung Min"]
[Black "Aggelis, Nikolaos"]
[WhiteFideId "1734687"]
[BlackFideId "4213220"]
[WhiteElo "2414"]
[BlackElo "2154"]
[Result "1-0"]
[Round "02"]
[TimeControl "180+1"]
[Date "2022.07.26"]
[WhiteClock "0:00:34"]
[BlackClock "0:00:01"]

1. e4 {[%clk 0:03:00]}  c5 {[%clk 0:02:59]} 2. Nf3 {[%clk 0:03:00]}  d6 {[%clk 0:02:58]} 3. d4 {[%clk 0:03:00]}  cxd4 {[%clk 0:02:59]} 4. Qxd4 {[%clk 0:03:01]}  e5 {[%clk 0:02:54]} 5. Qe3 {[%clk 0:02:58]}  Nf6 {[%clk 0:02:52]} 6. Bb5+ {[%clk 0:02:57]}  Nbd7 {[%clk 0:02:51]} 7. O-O {[%clk 0:02:55]}  a6 {[%clk 0:02:50]} 8. Be2 {[%clk 0:02:49]}  Be7 {[%clk 0:02:48]} 9. c4 {[%clk 0:02:49]}  O-O {[%clk 0:02:47]} 10. Nc3 {[%clk 0:02:49]}  Nc5 {[%clk 0:02:39]} 11. Rd1 {[%clk 0:02:48]}  Be6 {[%clk 0:02:40]} 12. b3 {[%clk 0:02:47]}  Rb8 {[%clk 0:02:38]} 13. Rb1 {[%clk 0:02:43]}  Qc7 {[%clk 0:02:33]} 14. Ng5 {[%clk 0:02:41]}  h6 {[%clk 0:02:27]} 15. Nxe6 {[%clk 0:02:41]}  fxe6 {[%clk 0:02:24]} 16. b4 {[%clk 0:02:34]}  Ncd7 {[%clk 0:02:23]} 17. Qh3 {[%clk 0:02:34]}  Kf7 {[%clk 0:02:20]} 18. c5 {[%clk 0:02:18]}  Rfd8 {[%clk 0:01:25]} 19. cxd6 {[%clk 0:01:48]}  Bxd6 {[%clk 0:01:23]} 20. b5 {[%clk 0:01:46]}  Rbc8 {[%clk 0:01:11]} 21. bxa6 {[%clk 0:01:39]}  bxa6 {[%clk 0:00:58]} 22. Bxa6 {[%clk 0:01:32]}  Qxc3 {[%clk 0:00:41]} 23. Bxc8 {[%clk 0:01:19]}  Qxh3 {[%clk 0:00:40]} 24. gxh3 {[%clk 0:01:19]}  Rxc8 {[%clk 0:00:28]} 25. Rxd6 {[%clk 0:01:18]}  Nc5 {[%clk 0:00:25]} 26. f3 {[%clk 0:01:07]}  Ra8 {[%clk 0:00:25]} 27. Be3 {[%clk 0:01:05]}  Ncd7 {[%clk 0:00:17]} 28. Rb7 {[%clk 0:01:02]}  Ke7 {[%clk 0:00:15]} 29. Bc5 {[%clk 0:01:02]}  Kd8 {[%clk 0:00:11]} 30. a3 {[%clk 0:00:48]}  Kc8 {[%clk 0:00:08]} 31. Rb5 {[%clk 0:00:48]}  Nxc5 {[%clk 0:00:05]} 32. Rxc5+ {[%clk 0:00:48]}  Kb7 {[%clk 0:00:05]} 33. Rd3 {[%clk 0:00:40]}  Nh5 {[%clk 0:00:05]} 34. Rb3+ {[%clk 0:00:40]}  Ka6 {[%clk 0:00:02]} 35. Rxe5 {[%clk 0:00:37]}  Nf4 {[%clk 0:00:02]} 36. h4 {[%clk 0:00:35]}  g5 {[%clk 0:00:02]} 37. hxg5 {[%clk 0:00:34]}  hxg5 {[%clk 0:00:01]} 38. Kf2 {[%clk 0:00:34]} 1-0


[Site "https://www.chess.com"]

[Event "Titled Tuesday Blitz July 26 Early 2022"]
[White "Shimanov, Aleksandr"]
[Black "Rodchenkov, Sergey D."]
[WhiteFideId "4198603"]
[BlackFideId "4168712"]
[WhiteElo "2605"]
[BlackElo "2293"]
[Result "1-0"]
[Round "02"]
[TimeControl "180+1"]
[Date "2022.07.26"]
[WhiteClock "0:00:14"]
[BlackClock "0:00:06"]

1. e4 {[%clk 0:03:00]}  c5 {[%clk 0:03:00]} 2. Nf3 {[%clk 0:03:00]}  d6 {[%clk 0:03:00]} 3. d4 {[%clk 0:02:59]}  cxd4 {[%clk 0:03:01]} 4. Qxd4 {[%clk 0:03:00]}  Nc6 {[%clk 0:03:01]} 5. Bb5 {[%clk 0:03:00]}  Bd7 {[%clk 0:03:02]} 6. Qd3 {[%clk 0:02:59]}  Nf6 {[%clk 0:02:58]} 7. Bg5 {[%clk 0:02:59]}  e6 {[%clk 0:02:53]} 8. Nc3 {[%clk 0:02:58]}  Be7 {[%clk 0:02:51]} 9. O-O-O {[%clk 0:02:58]}  a6 {[%clk 0:02:43]} 10. Bxc6 {[%clk 0:02:57]}  Bxc6 {[%clk 0:02:44]} 11. Nd4 {[%clk 0:02:55]}  O-O {[%clk 0:02:38]} 12. f4 {[%clk 0:02:54]}  Qa5 {[%clk 0:02:27]} 13. Rhe1 {[%clk 0:02:51]}  Rfd8 {[%clk 0:02:08]} 14. Kb1 {[%clk 0:02:47]}  Rd7 {[%clk 0:01:54]} 15. Bxf6 {[%clk 0:01:49]}  Bxf6 {[%clk 0:01:52]} 16. Nxc6 {[%clk 0:01:50]}  bxc6 {[%clk 0:01:52]} 17. e5 {[%clk 0:01:50]}  Be7 {[%clk 0:01:50]} 18. f5 {[%clk 0:01:50]}  Rb8 {[%clk 0:01:28]} 19. fxe6 {[%clk 0:01:50]}  fxe6 {[%clk 0:01:27]} 20. b3 {[%clk 0:01:00]}  d5 {[%clk 0:01:24]} 21. Qh3 {[%clk 0:00:58]}  Kh8 {[%clk 0:01:16]} 22. Re3 {[%clk 0:00:52]}  Rdb7 {[%clk 0:00:30]} 23. Qxe6 {[%clk 0:00:49]}  d4 {[%clk 0:00:30]} 24. Rxd4 {[%clk 0:00:48]}  Bc5 {[%clk 0:00:30]} 25. Rdd3 {[%clk 0:00:44]}  Bxe3 {[%clk 0:00:30]} 26. Rxe3 {[%clk 0:00:45]}  Rd8 {[%clk 0:00:28]} 27. Kb2 {[%clk 0:00:44]}  Qc5 {[%clk 0:00:25]} 28. Re4 {[%clk 0:00:43]}  Re7 {[%clk 0:00:21]} 29. Qf5 {[%clk 0:00:40]}  Rde8 {[%clk 0:00:20]} 30. Rc4 {[%clk 0:00:36]}  Qxe5 {[%clk 0:00:20]} 31. Qxe5 {[%clk 0:00:36]}  Rxe5 {[%clk 0:00:21]} 32. Rxc6 {[%clk 0:00:37]}  a5 {[%clk 0:00:21]} 33. a3 {[%clk 0:00:34]}  h5 {[%clk 0:00:21]} 34. b4 {[%clk 0:00:34]}  axb4 {[%clk 0:00:22]} 35. axb4 {[%clk 0:00:34]}  Rg5 {[%clk 0:00:22]} 36. g3 {[%clk 0:00:34]}  Rg4 {[%clk 0:00:19]} 37. Kb3 {[%clk 0:00:33]}  Rb8 {[%clk 0:00:17]} 38. b5 {[%clk 0:00:33]}  h4 {[%clk 0:00:18]} 39. gxh4 {[%clk 0:00:31]}  Rxh4 {[%clk 0:00:18]} 40. b6 {[%clk 0:00:29]}  Rxh2 {[%clk 0:00:17]} 41. Nd5 {[%clk 0:00:30]}  Rh5 {[%clk 0:00:15]} 42. c4 {[%clk 0:00:29]}  g5 {[%clk 0:00:14]} 43. Kb4 {[%clk 0:00:29]}  g4 {[%clk 0:00:13]} 44. Rg6 {[%clk 0:00:27]}  Rh4 {[%clk 0:00:06]} 45. Kb5 {[%clk 0:00:20]}  Kh7 {[%clk 0:00:06]} 46. Rxg4 {[%clk 0:00:15]}  Rxg4 {[%clk 0:00:05]} 47. Nf6+ {[%clk 0:00:15]}  Kg6 {[%clk 0:00:06]} 48. Nxg4 {[%clk 0:00:16]}  Kf5 {[%clk 0:00:07]} 49. c5 {[%clk 0:00:15]}  Ke6 {[%clk 0:00:06]} 50. c6 {[%clk 0:00:16]}  Kd6 {[%clk 0:00:06]} 51. Ne3 {[%clk 0:00:14]}  Rg8 {[%clk 0:00:05]} 52. Nc4+ {[%clk 0:00:14]}  Ke7 {[%clk 0:00:06]} 53. b7 {[%clk 0:00:14]}  Rb8 {[%clk 0:00:05]} 54. Kb6 {[%clk 0:00:15]}  Ke6 {[%clk 0:00:05]} 55. c7 {[%clk 0:00:14]}  Rg8 {[%clk 0:00:06]} 56. c8=Q+ {[%clk 0:00:14]} 1-0


[Site "https://www.chess.com"]

[Event "Titled Tuesday Blitz July 26 Early 2022"]
[White "Taichman, Ori"]
[Black "Lazavik, Denis"]
[WhiteFideId "2804069"]
[BlackFideId "13515110"]
[WhiteElo "2227"]
[BlackElo "2437"]
[Result "0-1"]
[Round "02"]
[TimeControl "180+1"]
[Date "2022.07.26"]
[WhiteClock "0:00:15"]
[BlackClock "0:00:07"]

1. e4 {[%clk 0:02:59]}  c5 {[%clk 0:02:57]} 2. b3 {[%clk 0:02:58]}  Nc6 {[%clk 0:02:53]} 3. Bb2 {[%clk 0:02:58]}  d6 {[%clk 0:02:48]} 4. f4 {[%clk 0:02:57]}  Nf6 {[%clk 0:02:45]} 5. Nc3 {[%clk 0:02:55]}  g6 {[%clk 0:02:42]} 6. Qe2 {[%clk 0:02:55]}  Bg7 {[%clk 0:02:38]} 7. O-O-O {[%clk 0:02:54]}  O-O {[%clk 0:02:34]} 8. Nf3 {[%clk 0:02:53]}  Bg4 {[%clk 0:02:30]} 9. h3 {[%clk 0:02:53]}  Nd4 {[%clk 0:02:28]} 10. Qf2 {[%clk 0:02:51]}  Bxf3 {[%clk 0:02:28]} 11. gxf3 {[%clk 0:02:52]}  Rb8 {[%clk 0:02:21]} 12. f5 {[%clk 0:02:43]}  b5 {[%clk 0:02:18]} 13. fxg6 {[%clk 0:02:41]}  fxg6 {[%clk 0:02:16]} 14. h4 {[%clk 0:02:33]}  Nh5 {[%clk 0:02:14]} 15. Be2 {[%clk 0:02:30]}  a5 {[%clk 0:02:07]} 16. Rdg1 {[%clk 0:02:13]}  a4 {[%clk 0:02:06]} 17. Nd5 {[%clk 0:02:12]}  axb3 {[%clk 0:02:03]} 18. axb3 {[%clk 0:02:09]}  e6 {[%clk 0:02:00]} 19. f4 {[%clk 0:02:07]}  Nxe2+ {[%clk 0:01:19]} 20. Qxe2 {[%clk 0:02:08]}  Bxb2+ {[%clk 0:01:17]} 21. Kxb2 {[%clk 0:02:08]}  Kh8 {[%clk 0:01:17]} 22. Nc3 {[%clk 0:01:51]}  Nxf4 {[%clk 0:01:15]} 23. Qg4 {[%clk 0:01:49]}  Qf6 {[%clk 0:01:14]} 24. Kb1 {[%clk 0:01:49]}  b4 {[%clk 0:01:05]} 25. Na4 {[%clk 0:01:41]}  c4 {[%clk 0:01:04]} 26. h5 {[%clk 0:01:40]}  gxh5 {[%clk 0:01:01]} 27. Qh4 {[%clk 0:01:30]}  cxb3 {[%clk 0:00:53]} 28. cxb3 {[%clk 0:01:26]}  Qe5 {[%clk 0:00:43]} 29. Qe7 {[%clk 0:01:20]}  Qxe4+ {[%clk 0:00:35]} 30. Ka1 {[%clk 0:01:16]}  Qd4+ {[%clk 0:00:33]} 31. Kb1 {[%clk 0:01:15]}  Ng6 {[%clk 0:00:24]} 32. Qxe6 {[%clk 0:01:03]}  Qd3+ {[%clk 0:00:23]} 33. Ka1 {[%clk 0:01:02]}  Rbe8 {[%clk 0:00:23]} 34. Qd7 {[%clk 0:00:31]}  Re7 {[%clk 0:00:21]} 35. Qc6 {[%clk 0:00:28]}  Qxb3 {[%clk 0:00:21]} 36. Rxh5 {[%clk 0:00:25]}  Ra7 {[%clk 0:00:15]} 37. Rxh7+ {[%clk 0:00:15]}  Kxh7 {[%clk 0:00:13]} 38. Qh1+ {[%clk 0:00:13]}  Kg7 {[%clk 0:00:13]} 39. Rxg6+ {[%clk 0:00:14]}  Kxg6 {[%clk 0:00:13]} 40. Qg1+ {[%clk 0:00:14]}  Kh5 {[%clk 0:00:08]} 41. Qxa7 {[%clk 0:00:15]}  Rf1# {[%clk 0:00:07]} 0-1


[Site "https://www.chess.com"]

[Event "Titled Tuesday Blitz July 26 Early 2022"]
[White "Vakhlamov, Igor L."]
[Black "Zeynalli, Rashad"]
[WhiteFideId "24126748"]
[BlackFideId "13403320"]
[WhiteElo "2401"]
[BlackElo "2125"]
[Result "1-0"]
[Round "02"]
[TimeControl "180+1"]
[Date "2022.07.26"]
[WhiteClock "0:00:29"]
[BlackClock "0:00:02"]

1. e4 {[%clk 0:03:00]}  c5 {[%clk 0:01:41]} 2. Nf3 {[%clk 0:03:01]}  d6 {[%clk 0:01:40]} 3. Nc3 {[%clk 0:03:01]}  Nf6 {[%clk 0:01:39]} 4. d4 {[%clk 0:03:01]}  cxd4 {[%clk 0:01:39]} 5. Qxd4 {[%clk 0:03:02]}  Nc6 {[%clk 0:01:37]} 6. Bb5 {[%clk 0:03:02]}  Bd7 {[%clk 0:01:37]} 7. Bxc6 {[%clk 0:03:03]}  Bxc6 {[%clk 0:01:37]} 8. Bg5 {[%clk 0:03:03]}  e5 {[%clk 0:01:34]} 9. Qd3 {[%clk 0:03:03]}  Be7 {[%clk 0:01:34]} 10. Bxf6 {[%clk 0:03:03]}  Bxf6 {[%clk 0:01:32]} 11. O-O-O {[%clk 0:03:03]}  Be7 {[%clk 0:01:29]} 12. Nd5 {[%clk 0:03:02]}  Bxd5 {[%clk 0:01:27]} 13. Qxd5 {[%clk 0:03:03]}  Qc7 {[%clk 0:01:24]} 14. Kb1 {[%clk 0:03:00]}  O-O {[%clk 0:01:21]} 15. h4 {[%clk 0:02:43]}  Rac8 {[%clk 0:01:15]} 16. c3 {[%clk 0:02:20]}  b5 {[%clk 0:01:10]} 17. Rd2 {[%clk 0:02:12]}  Qb6 {[%clk 0:01:04]} 18. g4 {[%clk 0:02:09]}  Rc5 {[%clk 0:00:54]} 19. Qd3 {[%clk 0:02:07]}  Rfc8 {[%clk 0:00:53]} 20. g5 {[%clk 0:01:58]}  b4 {[%clk 0:00:52]} 21. cxb4 {[%clk 0:01:59]}  Qxb4 {[%clk 0:00:47]} 22. h5 {[%clk 0:01:44]}  Qc4 {[%clk 0:00:46]} 23. a3 {[%clk 0:01:20]}  Qxd3+ {[%clk 0:00:41]} 24. Rxd3 {[%clk 0:01:21]}  Rc2 {[%clk 0:00:40]} 25. Rf1 {[%clk 0:01:16]}  Re2 {[%clk 0:00:38]} 26. Re3 {[%clk 0:01:06]}  Rcc2 {[%clk 0:00:31]} 27. Rb3 {[%clk 0:00:41]}  f6 {[%clk 0:00:20]} 28. g6 {[%clk 0:00:36]}  hxg6 {[%clk 0:00:19]} 29. hxg6 {[%clk 0:00:37]}  Rc8 {[%clk 0:00:17]} 30. Re3 {[%clk 0:00:34]}  Rxe3 {[%clk 0:00:16]} 31. fxe3 {[%clk 0:00:35]}  Rc4 {[%clk 0:00:12]} 32. Nd2 {[%clk 0:00:35]}  Rc8 {[%clk 0:00:12]} 33. Rc1 {[%clk 0:00:35]}  Rxc1+ {[%clk 0:00:11]} 34. Kxc1 {[%clk 0:00:36]}  Kf8 {[%clk 0:00:11]} 35. Nf3 {[%clk 0:00:36]}  Ke8 {[%clk 0:00:10]} 36. Nh4 {[%clk 0:00:37]}  Kd7 {[%clk 0:00:10]} 37. Nf5 {[%clk 0:00:37]}  Bf8 {[%clk 0:00:10]} 38. Kc2 {[%clk 0:00:38]}  Ke6 {[%clk 0:00:08]} 39. Kd3 {[%clk 0:00:35]}  d5 {[%clk 0:00:08]} 40. b4 {[%clk 0:00:35]}  dxe4+ {[%clk 0:00:08]} 41. Kxe4 {[%clk 0:00:36]}  a6 {[%clk 0:00:08]} 42. a4 {[%clk 0:00:36]}  Kd7 {[%clk 0:00:05]} 43. b5 {[%clk 0:00:31]}  a5 {[%clk 0:00:05]} 44. Kd5 {[%clk 0:00:31]}  Kc7 {[%clk 0:00:02]} 45. Ke6 {[%clk 0:00:29]} 1-0


[Site "https://www.chess.com"]

[Event "Titled Tuesday Blitz July 26 Early 2022"]
[White "Williams, Simon K"]
[Black "Hansen, Eric"]
[WhiteFideId "404454"]
[BlackFideId "2606771"]
[WhiteElo "2468"]
[BlackElo "2568"]
[Result "1-0"]
[Round "02"]
[TimeControl "180+1"]
[Date "2022.07.26"]
[WhiteClock "0:00:17"]
[BlackClock "0:00:31"]

1. d4 {[%clk 0:03:00]}  Nf6 {[%clk 0:02:51]} 2. c4 {[%clk 0:02:59]}  e6 {[%clk 0:02:46]} 3. Nf3 {[%clk 0:02:57]}  b6 {[%clk 0:02:43]} 4. g3 {[%clk 0:02:57]}  Ba6 {[%clk 0:02:42]} 5. Qc2 {[%clk 0:02:52]}  c6 {[%clk 0:02:42]} 6. e4 {[%clk 0:02:47]}  d5 {[%clk 0:02:38]} 7. cxd5 {[%clk 0:02:44]}  Bxf1 {[%clk 0:02:36]} 8. Kxf1 {[%clk 0:02:44]}  cxd5 {[%clk 0:02:31]} 9. e5 {[%clk 0:02:35]}  Ne4 {[%clk 0:02:31]} 10. Nbd2 {[%clk 0:02:30]}  Nxd2+ {[%clk 0:02:30]} 11. Bxd2 {[%clk 0:02:30]}  Be7 {[%clk 0:02:22]} 12. Kg2 {[%clk 0:02:27]}  O-O {[%clk 0:02:20]} 13. Rac1 {[%clk 0:02:16]}  Qd7 {[%clk 0:01:48]} 14. Qc7 {[%clk 0:01:58]}  Bd8 {[%clk 0:01:47]} 15. Qxd7 {[%clk 0:01:55]}  Nxd7 {[%clk 0:01:47]} 16. a4 {[%clk 0:01:45]}  Re8 {[%clk 0:01:43]} 17. h4 {[%clk 0:01:05]}  f6 {[%clk 0:01:43]} 18. Bf4 {[%clk 0:01:05]}  h5 {[%clk 0:01:38]} 19. Rc6 {[%clk 0:01:03]}  Kf7 {[%clk 0:01:35]} 20. b4 {[%clk 0:01:00]}  Nf8 {[%clk 0:01:24]} 21. Rhc1 {[%clk 0:00:54]}  Ng6 {[%clk 0:01:24]} 22. Rc8 {[%clk 0:00:38]}  Be7 {[%clk 0:01:09]} 23. Rxe8 {[%clk 0:00:36]}  Kxe8 {[%clk 0:01:08]} 24. b5 {[%clk 0:00:31]}  Kd7 {[%clk 0:01:06]} 25. exf6 {[%clk 0:00:31]}  gxf6 {[%clk 0:01:06]} 26. Rc7+ {[%clk 0:00:30]}  Kd8 {[%clk 0:01:06]} 27. Rb7 {[%clk 0:00:29]}  Nxf4+ {[%clk 0:00:54]} 28. gxf4 {[%clk 0:00:29]}  Bd6 {[%clk 0:00:55]} 29. Rh7 {[%clk 0:00:26]}  Rc8 {[%clk 0:00:55]} 30. Rxh5 {[%clk 0:00:20]}  Bxf4 {[%clk 0:00:54]} 31. Rh8+ {[%clk 0:00:19]}  Kc7 {[%clk 0:00:51]} 32. Rxc8+ {[%clk 0:00:16]}  Kxc8 {[%clk 0:00:50]} 33. Kh3 {[%clk 0:00:16]}  Kd7 {[%clk 0:00:48]} 34. Kg4 {[%clk 0:00:17]}  Bc1 {[%clk 0:00:48]} 35. Kh5 {[%clk 0:00:17]}  Kd6 {[%clk 0:00:42]} 36. Kg6 {[%clk 0:00:17]}  e5 {[%clk 0:00:43]} 37. h5 {[%clk 0:00:17]}  e4 {[%clk 0:00:42]} 38. Nh4 {[%clk 0:00:17]}  Ke6 {[%clk 0:00:31]} 39. Nf5 {[%clk 0:00:17]} 1-0


[Site "https://www.chess.com"]

[Event "Titled Tuesday Blitz July 26 Early 2022"]
[White "Amburgy, Ryan"]
[Black "Kubicka, Anna"]
[WhiteFideId "30924820"]
[BlackFideId "1152254"]
[WhiteElo "2066"]
[BlackElo "2025"]
[Result "1-0"]
[Round "03"]
[TimeControl "180+1"]
[Date "2022.07.26"]
[WhiteClock "0:00:19"]
[BlackClock "0:00:01"]

1. d4 {[%clk 0:03:00]}  Nf6 {[%clk 0:02:58]} 2. Nc3 {[%clk 0:03:01]}  c5 {[%clk 0:02:58]} 3. d5 {[%clk 0:03:01]}  e6 {[%clk 0:02:58]} 4. e4 {[%clk 0:03:02]}  exd5 {[%clk 0:02:58]} 5. e5 {[%clk 0:03:02]}  Ng8 {[%clk 0:02:40]} 6. Nxd5 {[%clk 0:03:00]}  Ne7 {[%clk 0:02:39]} 7. Bc4 {[%clk 0:02:53]}  Nxd5 {[%clk 0:02:38]} 8. Qxd5 {[%clk 0:02:52]}  Qe7 {[%clk 0:02:35]} 9. Nf3 {[%clk 0:02:45]}  Nc6 {[%clk 0:02:33]} 10. Bf4 {[%clk 0:02:39]}  Nb4 {[%clk 0:02:30]} 11. Qd2 {[%clk 0:02:39]}  d5 {[%clk 0:02:18]} 12. Bxd5 {[%clk 0:02:12]}  Nxd5 {[%clk 0:02:19]} 13. Qxd5 {[%clk 0:02:12]}  Be6 {[%clk 0:02:19]} 14. Qd3 {[%clk 0:02:10]}  c4 {[%clk 0:02:12]} 15. Qe3 {[%clk 0:02:06]}  Qb4+ {[%clk 0:02:09]} 16. Nd2 {[%clk 0:01:56]}  Bc5 {[%clk 0:02:02]} 17. Qc3 {[%clk 0:01:54]}  Qxc3 {[%clk 0:01:59]} 18. bxc3 {[%clk 0:01:55]}  O-O {[%clk 0:01:49]} 19. Rb1 {[%clk 0:01:37]}  Bd5 {[%clk 0:01:43]} 20. O-O {[%clk 0:01:31]}  Rad8 {[%clk 0:01:41]} 21. Rfd1 {[%clk 0:01:27]}  a6 {[%clk 0:01:37]} 22. h3 {[%clk 0:01:18]}  b5 {[%clk 0:01:35]} 23. a4 {[%clk 0:01:10]}  bxa4 {[%clk 0:01:28]} 24. Ra1 {[%clk 0:01:11]}  a3 {[%clk 0:01:28]} 25. Nb1 {[%clk 0:01:11]}  Be4 {[%clk 0:01:22]} 26. Rxd8 {[%clk 0:01:10]}  Rxd8 {[%clk 0:01:23]} 27. Nxa3 {[%clk 0:01:11]}  Bxa3 {[%clk 0:01:15]} 28. Rxa3 {[%clk 0:01:12]}  Rd1+ {[%clk 0:01:10]} 29. Kh2 {[%clk 0:01:12]}  Bxc2 {[%clk 0:01:11]} 30. Rxa6 {[%clk 0:01:12]}  h6 {[%clk 0:01:11]} 31. Be3 {[%clk 0:01:10]}  Rd3 {[%clk 0:01:05]} 32. Bd4 {[%clk 0:01:10]}  Kh7 {[%clk 0:01:00]} 33. e6 {[%clk 0:01:04]}  fxe6 {[%clk 0:00:58]} 34. Rxe6 {[%clk 0:01:05]}  g5 {[%clk 0:00:51]} 35. Re7+ {[%clk 0:01:00]}  Kg6 {[%clk 0:00:48]} 36. g4 {[%clk 0:00:55]}  h5 {[%clk 0:00:43]} 37. Rc7 {[%clk 0:00:36]}  hxg4 {[%clk 0:00:43]} 38. hxg4 {[%clk 0:00:37]}  Bd1 {[%clk 0:00:36]} 39. Rc6+ {[%clk 0:00:34]}  Kf7 {[%clk 0:00:34]} 40. Rxc4 {[%clk 0:00:34]}  Bxg4 {[%clk 0:00:33]} 41. Rc5 {[%clk 0:00:35]}  Kg6 {[%clk 0:00:27]} 42. Be3 {[%clk 0:00:36]}  Bf5 {[%clk 0:00:27]} 43. Kg3 {[%clk 0:00:33]}  Rd1 {[%clk 0:00:25]} 44. Rc7 {[%clk 0:00:32]}  Be4 {[%clk 0:00:17]} 45. f3 {[%clk 0:00:32]}  Bd5 {[%clk 0:00:10]} 46. c4 {[%clk 0:00:29]}  Be6 {[%clk 0:00:10]} 47. c5 {[%clk 0:00:28]}  Bd5 {[%clk 0:00:09]} 48. Rc8 {[%clk 0:00:27]}  Rd3 {[%clk 0:00:09]} 49. Kf2 {[%clk 0:00:28]}  Rc3 {[%clk 0:00:09]} 50. Rd8 {[%clk 0:00:27]}  Rc2+ {[%clk 0:00:08]} 51. Kg3 {[%clk 0:00:27]}  Bb7 {[%clk 0:00:08]} 52. Rd6+ {[%clk 0:00:26]}  Kf5 {[%clk 0:00:07]} 53. Rb6 {[%clk 0:00:23]}  Bd5 {[%clk 0:00:07]} 54. Rb8 {[%clk 0:00:24]}  Rc3 {[%clk 0:00:06]} 55. Rf8+ {[%clk 0:00:24]}  Kg6 {[%clk 0:00:05]} 56. Re8 {[%clk 0:00:23]}  Kf5 {[%clk 0:00:03]} 57. Kf2 {[%clk 0:00:24]}  Rc2+ {[%clk 0:00:03]} 58. Kg3 {[%clk 0:00:19]}  Rc3 {[%clk 0:00:04]} 59. Re7 {[%clk 0:00:19]}  Kf6 {[%clk 0:00:04]} 60. Bd4+ {[%clk 0:00:19]}  Kxe7 {[%clk 0:00:04]} 61. Bxc3 {[%clk 0:00:19]}  Kf7 {[%clk 0:00:02]} 62. Kg4 {[%clk 0:00:16]}  Ke6 {[%clk 0:00:02]} 63. Bd2 {[%clk 0:00:17]}  Kf6 {[%clk 0:00:01]} 64. Bxg5+ {[%clk 0:00:17]}  Kg6 {[%clk 0:00:02]} 65. Be3 {[%clk 0:00:18]}  Kf6 {[%clk 0:00:01]} 66. Kf4 {[%clk 0:00:17]}  Ke6 {[%clk 0:00:02]} 67. Bd4 {[%clk 0:00:17]}  Bc6 {[%clk 0:00:02]} 68. Kg4 {[%clk 0:00:18]}  Kf7 {[%clk 0:00:02]} 69. f4 {[%clk 0:00:18]}  Bd5 {[%clk 0:00:02]} 70. Kf5 {[%clk 0:00:18]}  Bc6 {[%clk 0:00:02]} 71. Ke5 {[%clk 0:00:19]}  Ke7 {[%clk 0:00:03]} 72. f5 {[%clk 0:00:20]}  Bf3 {[%clk 0:00:02]} 73. f6+ {[%clk 0:00:20]}  Kf7 {[%clk 0:00:02]} 74. Kd6 {[%clk 0:00:19]}  Ke8 {[%clk 0:00:01]} 75. c6 {[%clk 0:00:19]} 1-0


[Site "https://www.chess.com"]